[Event "Late-Titled-Tuesday-Blitz-April-30-2024"]
[Site "Chess.com"]
[Date "2024.04.30"]
[Round "11"]
[White "zacachess"]
[Black "IMRosen"]
[Result "0-1"]
[WhiteElo "2369"]
[BlackElo "2659"]
[TimeControl "180+1"]
[EndTime "16:05:22 PDT"]
[Termination "IMRosen won on time"]

1. e4 {[%clk 0:03:00.4]} 1... e5 {[%clk 0:02:56.4]} 2. Nf3 {[%clk 0:03:00.2]}
2... Nf6 {[%clk 0:02:55.4]} 3. Nc3 {[%clk 0:02:56.2]} 3... Bc5 {[%clk 0:02:55]}
4. Bc4 {[%clk 0:02:44.7]} 4... Nc6 {[%clk 0:02:53.3]} 5. O-O {[%clk 0:02:43.8]}
5... d6 {[%clk 0:02:53.1]} 6. d3 {[%clk 0:02:35.2]} 6... h6 {[%clk 0:02:52.4]}
7. Na4 {[%clk 0:02:29.5]} 7... Bb6 {[%clk 0:02:44.5]} 8. Nxb6 {[%clk 0:02:28.9]}
8... axb6 {[%clk 0:02:45.4]} 9. c3 {[%clk 0:02:23.8]} 9... Bd7 {[%clk
0:02:43.1]} 10. Re1 {[%clk 0:02:20.3]} 10... Na5 {[%clk 0:02:42]} 11. Nd2 {[%clk
0:01:59.5]} 11... b5 {[%clk 0:02:32.2]} 12. Bb3 {[%clk 0:01:59.1]} 12... Nxb3
{[%clk 0:02:32.8]} 13. Nxb3 {[%clk 0:01:58.5]} 13... O-O {[%clk 0:02:30.8]} 14.
f4 {[%clk 0:01:52.7]} 14... exf4 {[%clk 0:02:28]} 15. Bxf4 {[%clk 0:01:53.6]}
15... Be6 {[%clk 0:02:28.7]} 16. Nd4 {[%clk 0:01:48.2]} 16... Qd7 {[%clk
0:02:22.1]} 17. a3 {[%clk 0:01:35.8]} 17... c5 {[%clk 0:02:22]} 18. Nf3 {[%clk
0:01:21.3]} 18... Rfe8 {[%clk 0:02:18.7]} 19. Qd2 {[%clk 0:01:14.7]} 19... Nh7
{[%clk 0:02:03.7]} 20. d4 {[%clk 0:01:02.1]} 20... Bg4 {[%clk 0:01:54]} 21. dxc5
{[%clk 0:00:58.1]} 21... dxc5 {[%clk 0:01:54.9]} 22. Qxd7 {[%clk 0:00:56.2]}
22... Bxd7 {[%clk 0:01:55.8]} 23. Ne5 {[%clk 0:00:48.6]} 23... Be6 {[%clk
0:01:53.4]} 24. Rad1 {[%clk 0:00:40.9]} 24... Nf6 {[%clk 0:01:46.5]} 25. Nd3
{[%clk 0:00:33.8]} 25... b6 {[%clk 0:01:44.4]} 26. Nf2 {[%clk 0:00:24.8]} 26...
Bb3 {[%clk 0:01:31]} 27. Rd6 {[%clk 0:00:19.8]} 27... Re6 {[%clk 0:01:31.1]} 28.
Rxe6 {[%clk 0:00:18.6]} 28... Bxe6 {[%clk 0:01:32]} 29. Rd1 {[%clk 0:00:18.6]}
29... Kf8 {[%clk 0:01:24.9]} 30. Bc7 {[%clk 0:00:18]} 30... Nd7 {[%clk 0:01:23]}
31. e5 {[%clk 0:00:15.9]} 31... Ra4 {[%clk 0:01:16.9]} 32. Rd6 {[%clk
0:00:14.4]} 32... b4 {[%clk 0:01:10.6]} 33. cxb4 {[%clk 0:00:08.5]} 33... cxb4
{[%clk 0:01:10.7]} 34. Bxb6 {[%clk 0:00:08.3]} 34... bxa3 {[%clk 0:01:07.2]} 35.
bxa3 {[%clk 0:00:08.3]} 35... Nxe5 {[%clk 0:00:50.4]} 36. Bc5 {[%clk 0:00:05.8]}
36... Kg8 {[%clk 0:00:48.7]} 37. h3 {[%clk 0:00:03.6]} 37... Nc4 {[%clk
0:00:46.7]} 38. Rd8+ {[%clk 0:00:03.1]} 38... Kh7 {[%clk 0:00:46.7]} 39. Rb8
{[%clk 0:00:02.7]} 39... Nxa3 {[%clk 0:00:42.7]} 40. Bxa3 {[%clk 0:00:03.1]}
40... Rxa3 {[%clk 0:00:43.6]} 41. Kh2 {[%clk 0:00:03.6]} 41... Ra2 {[%clk
0:00:42.4]} 42. Kg3 {[%clk 0:00:04.1]} 42... g5 {[%clk 0:00:38.1]} 43. Rb5
{[%clk 0:00:02.7]} 43... Kg6 {[%clk 0:00:36.3]} 44. Ng4 {[%clk 0:00:02.8]} 44...
h5 {[%clk 0:00:21.5]} 45. Ne5+ {[%clk 0:00:02.9]} 45... Kg7 {[%clk 0:00:21.4]}
46. Nf3 {[%clk 0:00:03.8]} 46... f6 {[%clk 0:00:21]} 47. Rb7+ {[%clk 0:00:03.8]}
47... Kg6 {[%clk 0:00:20.9]} 48. Rb6 {[%clk 0:00:04.7]} 48... h4+ {[%clk
0:00:11.7]} 49. Kh2 {[%clk 0:00:03.9]} 49... Bd5 {[%clk 0:00:12.1]} 50. Ne1
{[%clk 0:00:03.6]} 50... Re2 {[%clk 0:00:11.8]} 51. Rd6 {[%clk 0:00:03.9]} 51...
Bb7 {[%clk 0:00:09.6]} 52. Rb6 {[%clk 0:00:03.4]} 52... Be4 {[%clk 0:00:07.9]}
53. Nd3 {[%clk 0:00:01.2]} 53... Bxd3 {[%clk 0:00:07.7]} 0-1

[Event "Late-Titled-Tuesday-Blitz-April-30-2024"]
[Site "Chess.com"]
[Date "2024.04.30"]
[Round "11"]
[White "FabianoCaruana"]
[Black "MatthewG-p4p"]
[Result "1-0"]
[WhiteElo "3082"]
[BlackElo "2887"]
[TimeControl "180+1"]
[EndTime "16:05:25 PDT"]
[Termination "FabianoCaruana won on time"]

1. c4 {[%clk 0:02:56.2]} 1... e6 {[%clk 0:02:59.9]} 2. Nc3 {[%clk 0:02:55.5]}
2... d5 {[%clk 0:03:00.4]} 3. d4 {[%clk 0:02:55.3]} 3... c6 {[%clk 0:03:00.9]}
4. e3 {[%clk 0:02:54.8]} 4... f5 {[%clk 0:03:00.7]} 5. Nf3 {[%clk 0:02:54.3]}
5... Nf6 {[%clk 0:03:00.9]} 6. Bd3 {[%clk 0:02:54.1]} 6... Bd6 {[%clk 0:03:01]}
7. O-O {[%clk 0:02:54.8]} 7... O-O {[%clk 0:03:01.1]} 8. Ne5 {[%clk 0:02:55.4]}
8... Nbd7 {[%clk 0:02:57.2]} 9. f4 {[%clk 0:02:55.7]} 9... Ne4 {[%clk
0:02:54.4]} 10. Bd2 {[%clk 0:02:55.7]} 10... Nxe5 {[%clk 0:02:37.4]} 11. fxe5
{[%clk 0:02:55.4]} 11... Nxd2 {[%clk 0:02:22.3]} 12. Qxd2 {[%clk 0:02:54.9]}
12... dxc4 {[%clk 0:02:11.8]} 13. exd6 {[%clk 0:02:42.1]} 13... cxd3 {[%clk
0:02:09.5]} 14. Qxd3 {[%clk 0:02:41.2]} 14... Qxd6 {[%clk 0:02:09.7]} 15. Rad1
{[%clk 0:02:35.3]} 15... Bd7 {[%clk 0:02:09.7]} 16. Qc4 {[%clk 0:02:29.9]} 16...
b6 {[%clk 0:01:57.5]} 17. Ne2 {[%clk 0:02:26.4]} 17... Kh8 {[%clk 0:01:51.8]}
18. Nf4 {[%clk 0:02:26]} 18... Rad8 {[%clk 0:01:31.5]} 19. a3 {[%clk 0:02:20.8]}
19... e5 {[%clk 0:01:22.1]} 20. dxe5 {[%clk 0:02:13.6]} 20... Qxe5 {[%clk
0:01:23]} 21. Rd3 {[%clk 0:02:12]} 21... g5 {[%clk 0:01:03.8]} 22. Ne2 {[%clk
0:01:29.6]} 22... Be6 {[%clk 0:01:02.3]} 23. Qc2 {[%clk 0:01:29.8]} 23... c5
{[%clk 0:00:54.3]} 24. Nc3 {[%clk 0:01:11.9]} 24... c4 {[%clk 0:00:50.7]} 25.
Rxd8 {[%clk 0:01:08.7]} 25... Qxe3+ {[%clk 0:00:50.5]} 26. Qf2 {[%clk
0:01:08.8]} 26... Qxf2+ {[%clk 0:00:50.6]} 27. Kxf2 {[%clk 0:01:09.7]} 27...
Rxd8 {[%clk 0:00:51.3]} 28. Ke2 {[%clk 0:01:00.6]} 28... Kg7 {[%clk 0:00:46.1]}
29. g3 {[%clk 0:00:59.8]} 29... Kf6 {[%clk 0:00:36.9]} 30. a4 {[%clk 0:01:00.1]}
30... Ke5 {[%clk 0:00:35.5]} 31. Re1 {[%clk 0:01:00]} 31... Rd3 {[%clk
0:00:33.6]} 32. a5 {[%clk 0:00:55.4]} 32... f4 {[%clk 0:00:31]} 33. gxf4+ {[%clk
0:00:54]} 33... Kxf4 {[%clk 0:00:27.5]} 34. Rf1+ {[%clk 0:00:49.7]} 34... Ke5
{[%clk 0:00:26.7]} 35. a6 {[%clk 0:00:44.1]} 35... Bg4+ {[%clk 0:00:19.8]} 36.
Ke1 {[%clk 0:00:44.4]} 36... Rf3 {[%clk 0:00:10.8]} 37. Rg1 {[%clk 0:00:34.6]}
37... h5 {[%clk 0:00:10.7]} 38. Rg2 {[%clk 0:00:31.1]} 38... Re3+ {[%clk
0:00:05.5]} 39. Kd2 {[%clk 0:00:25.1]} 39... Rd3+ {[%clk 0:00:06.3]} 40. Ke1
{[%clk 0:00:24.6]} 40... Rd6 {[%clk 0:00:05.7]} 41. h3 {[%clk 0:00:20.1]} 41...
Bxh3 {[%clk 0:00:03]} 42. Rxg5+ {[%clk 0:00:21]} 42... Bf5 {[%clk 0:00:03.6]}
43. Nb5 {[%clk 0:00:17.8]} 43... Rd7 {[%clk 0:00:02.4]} 44. Rxh5 {[%clk
0:00:18.4]} 44... Kf4 {[%clk 0:00:02.9]} 45. Rh6 {[%clk 0:00:10.3]} 45... Bg4
{[%clk 0:00:03.2]} 46. Rf6+ {[%clk 0:00:05.5]} 46... Ke3 {[%clk 0:00:03.2]} 47.
Rd6 {[%clk 0:00:05.6]} 47... Rh7 {[%clk 0:00:03.6]} 48. Kf1 {[%clk 0:00:04.2]}
48... Bf3 {[%clk 0:00:04.1]} 49. Rg6 {[%clk 0:00:01.8]} 49... Be4 {[%clk
0:00:04.5]} 50. Rg3+ {[%clk 0:00:01.6]} 50... Bf3 {[%clk 0:00:04.7]} 51. Nxa7
{[%clk 0:00:01.5]} 51... Rxa7 {[%clk 0:00:03.8]} 52. Rg6 {[%clk 0:00:00.8]}
52... Rxa6 {[%clk 0:00:02.1]} 53. Re6+ {[%clk 0:00:01.7]} 1-0

[Event "Late-Titled-Tuesday-Blitz-April-30-2024"]
[Site "Chess.com"]
[Date "2024.04.30"]
[Round "11"]
[White "Carlitus2004"]
[Black "rhwr"]
[Result "0-1"]
[WhiteElo "2466"]
[BlackElo "2308"]
[TimeControl "180+1"]
[EndTime "16:05:27 PDT"]
[Termination "rhwr won by checkmate"]

1. e4 {[%clk 0:03:00.9]} 1... c5 {[%clk 0:02:59.6]} 2. Nf3 {[%clk 0:03:00]} 2...
d6 {[%clk 0:02:59.9]} 3. Bb5+ {[%clk 0:02:46.9]} 3... Nd7 {[%clk 0:02:54.2]} 4.
O-O {[%clk 0:02:44.3]} 4... a6 {[%clk 0:02:54.5]} 5. Bd3 {[%clk 0:02:44]} 5...
Ngf6 {[%clk 0:02:54.9]} 6. Re1 {[%clk 0:02:44.4]} 6... e5 {[%clk 0:02:55]} 7. c3
{[%clk 0:02:44.1]} 7... Be7 {[%clk 0:02:55.3]} 8. Bc2 {[%clk 0:02:36.7]} 8...
O-O {[%clk 0:02:55.7]} 9. d4 {[%clk 0:02:37.4]} 9... Qc7 {[%clk 0:02:55.7]} 10.
dxe5 {[%clk 0:02:30.2]} 10... dxe5 {[%clk 0:02:54.9]} 11. c4 {[%clk 0:02:30.7]}
11... b5 {[%clk 0:02:51.7]} 12. Nc3 {[%clk 0:02:27.2]} 12... b4 {[%clk
0:02:45.8]} 13. Nd5 {[%clk 0:02:27]} 13... Nxd5 {[%clk 0:02:46.3]} 14. exd5
{[%clk 0:02:05.7]} 14... f5 {[%clk 0:02:41]} 15. Ng5 {[%clk 0:01:44.7]} 15...
Bxg5 {[%clk 0:02:35.6]} 16. Bxg5 {[%clk 0:01:45.6]} 16... Qd6 {[%clk 0:02:32.1]}
17. Qe2 {[%clk 0:01:36.6]} 17... g6 {[%clk 0:02:07.7]} 18. Ba4 {[%clk
0:01:30.9]} 18... e4 {[%clk 0:01:59.9]} 19. Bxd7 {[%clk 0:01:17.8]} 19... Bxd7
{[%clk 0:01:57.5]} 20. Qe3 {[%clk 0:01:08.1]} 20... Rac8 {[%clk 0:01:44]} 21. b3
{[%clk 0:00:49.9]} 21... Qe5 {[%clk 0:01:28.3]} 22. Bf4 {[%clk 0:00:49.3]} 22...
Qd4 {[%clk 0:01:27.5]} 23. Rad1 {[%clk 0:00:44.1]} 23... Qxe3 {[%clk 0:01:27]}
24. fxe3 {[%clk 0:00:39.3]} 24... Rfe8 {[%clk 0:01:22.3]} 25. h4 {[%clk
0:00:37.4]} 25... Kf7 {[%clk 0:01:20.3]} 26. Kf2 {[%clk 0:00:36.5]} 26... a5
{[%clk 0:01:15.8]} 27. h5 {[%clk 0:00:33.3]} 27... Rg8 {[%clk 0:01:13.8]} 28.
hxg6+ {[%clk 0:00:32.6]} 28... hxg6 {[%clk 0:01:09.1]} 29. Rh1 {[%clk
0:00:31.9]} 29... g5 {[%clk 0:01:03.7]} 30. Be5 {[%clk 0:00:20.7]} 30... Kg6
{[%clk 0:01:00.4]} 31. Rh2 {[%clk 0:00:18.1]} 31... Rge8 {[%clk 0:00:54.9]} 32.
Bd6 {[%clk 0:00:08.8]} 32... Rh8 {[%clk 0:00:45.5]} 33. Rdh1 {[%clk 0:00:09.3]}
33... Rxh2 {[%clk 0:00:44.1]} 34. Rxh2 {[%clk 0:00:10.2]} 34... a4 {[%clk
0:00:41.5]} 35. Be7 {[%clk 0:00:09.1]} 35... axb3 {[%clk 0:00:40]} 36. axb3
{[%clk 0:00:10]} 36... Ra8 {[%clk 0:00:39.7]} 37. Bxc5 {[%clk 0:00:09.3]} 37...
Ra2+ {[%clk 0:00:38.9]} 38. Kg3 {[%clk 0:00:09.8]} 38... Rb2 {[%clk 0:00:35.3]}
39. Bxb4 {[%clk 0:00:08.4]} 39... Rxb3 {[%clk 0:00:35.8]} 40. Bc5 {[%clk
0:00:09.1]} 40... Rc3 {[%clk 0:00:35.1]} 41. Bd4 {[%clk 0:00:07.5]} 41... f4+
{[%clk 0:00:30.9]} 42. Kf2 {[%clk 0:00:06.5]} 42... Rxc4 {[%clk 0:00:31.8]} 43.
Rh8 {[%clk 0:00:05.9]} 43... Rc2+ {[%clk 0:00:30.9]} 44. Ke1 {[%clk 0:00:03.8]}
44... Rxg2 {[%clk 0:00:28.5]} 45. exf4 {[%clk 0:00:04.5]} 45... Bg4 {[%clk
0:00:19.3]} 46. Rg8+ {[%clk 0:00:04.4]} 46... Kf5 {[%clk 0:00:16.4]} 47. Rf8+
{[%clk 0:00:04.4]} 47... Kg6 {[%clk 0:00:15.9]} 48. Rf6+ {[%clk 0:00:04.9]}
48... Kh5 {[%clk 0:00:15.2]} 49. fxg5 {[%clk 0:00:03.1]} 49... Kxg5 {[%clk
0:00:13.5]} 50. Rf8 {[%clk 0:00:02.6]} 50... Re2+ {[%clk 0:00:09.3]} 51. Kf1
{[%clk 0:00:03.1]} 51... Kh4 {[%clk 0:00:07.9]} 52. Be5 {[%clk 0:00:02.6]} 52...
Rd2 {[%clk 0:00:05.6]} 53. Rh8+ {[%clk 0:00:03.1]} 53... Kg5 {[%clk 0:00:05.1]}
54. d6 {[%clk 0:00:03.4]} 54... Kf5 {[%clk 0:00:03.6]} 55. Bg3 {[%clk
0:00:02.8]} 55... e3 {[%clk 0:00:02.7]} 56. Rf8+ {[%clk 0:00:03.5]} 56... Ke4
{[%clk 0:00:02.5]} 57. Re8+ {[%clk 0:00:03.8]} 57... Kf3 {[%clk 0:00:02.5]} 58.
Rf8+ {[%clk 0:00:04.1]} 58... Kxg3 {[%clk 0:00:02.4]} 59. Ke1 {[%clk 0:00:03.8]}
59... Rd1# {[%clk 0:00:02.3]} 0-1

[Event "Late-Titled-Tuesday-Blitz-April-30-2024"]
[Site "Chess.com"]
[Date "2024.04.30"]
[Round "11"]
[White "rikchessmx"]
[Black "H3nriqueTV"]
[Result "0-1"]
[WhiteElo "2279"]
[BlackElo "2424"]
[TimeControl "180+1"]
[EndTime "16:05:31 PDT"]
[Termination "H3nriqueTV won by resignation"]

1. e4 {[%clk 0:03:00.9]} 1... c5 {[%clk 0:02:54.5]} 2. Nf3 {[%clk 0:02:43.3]}
2... b6 {[%clk 0:02:52.4]} 3. d4 {[%clk 0:02:43.7]} 3... cxd4 {[%clk 0:02:53.3]}
4. Nxd4 {[%clk 0:02:43.3]} 4... Bb7 {[%clk 0:02:54]} 5. Nc3 {[%clk 0:02:43]}
5... a6 {[%clk 0:02:54.5]} 6. Bd3 {[%clk 0:02:42.6]} 6... e6 {[%clk 0:02:54.7]}
7. O-O {[%clk 0:02:37.8]} 7... Qc7 {[%clk 0:02:52.5]} 8. Be3 {[%clk 0:02:36.7]}
8... Nc6 {[%clk 0:02:51.9]} 9. Re1 {[%clk 0:02:33.7]} 9... Nf6 {[%clk
0:02:49.9]} 10. Nd5 {[%clk 0:02:31.1]} 10... exd5 {[%clk 0:02:49.4]} 11. exd5
{[%clk 0:02:31.3]} 11... Ne5 {[%clk 0:02:46.4]} 12. Bf4 {[%clk 0:02:29]} 12...
d6 {[%clk 0:02:46.9]} 13. Nf5 {[%clk 0:02:28.5]} 13... O-O-O {[%clk 0:02:41.9]}
14. c4 {[%clk 0:02:23.5]} 14... g6 {[%clk 0:02:26.8]} 15. Bg5 {[%clk 0:01:53.6]}
15... Ned7 {[%clk 0:01:55.4]} 16. Nd4 {[%clk 0:01:51.5]} 16... h6 {[%clk
0:01:51.7]} 17. Be3 {[%clk 0:01:47.8]} 17... Ne5 {[%clk 0:01:48.3]} 18. Bf1
{[%clk 0:01:46.9]} 18... Nfg4 {[%clk 0:01:42.9]} 19. Bf4 {[%clk 0:01:44.6]}
19... Bg7 {[%clk 0:01:43.4]} 20. Rc1 {[%clk 0:01:43.1]} 20... Rhe8 {[%clk
0:01:23]} 21. h3 {[%clk 0:01:39.7]} 21... Nf6 {[%clk 0:01:22.2]} 22. b4 {[%clk
0:01:38.7]} 22... Nh5 {[%clk 0:01:19.4]} 23. Bh2 {[%clk 0:01:37.5]} 23... Nd7
{[%clk 0:01:19.2]} 24. Rxe8 {[%clk 0:01:27]} 24... Rxe8 {[%clk 0:01:19.3]} 25.
c5 {[%clk 0:01:27.6]} 25... bxc5 {[%clk 0:01:17.2]} 26. bxc5 {[%clk 0:01:26.7]}
26... Nxc5 {[%clk 0:01:17.2]} 27. Nb3 {[%clk 0:01:26.9]} 27... Be5 {[%clk
0:01:13.4]} 28. Nxc5 {[%clk 0:01:22.9]} 28... Bxh2+ {[%clk 0:01:11.8]} 29. Kxh2
{[%clk 0:01:22]} 29... dxc5+ {[%clk 0:01:11.7]} 30. d6 {[%clk 0:01:12.5]} 30...
Qc6 {[%clk 0:00:42.2]} 31. Kg1 {[%clk 0:01:12.3]} 31... Kd7 {[%clk 0:00:36.7]}
32. Qb3 {[%clk 0:01:09]} 32... Re6 {[%clk 0:00:26.9]} 33. Rd1 {[%clk 0:01:02.2]}
33... Nf4 {[%clk 0:00:23]} 34. Qg3 {[%clk 0:00:51]} 34... g5 {[%clk 0:00:20.5]}
35. h4 {[%clk 0:00:50.4]} 35... Rxd6 {[%clk 0:00:17.3]} 36. Rxd6+ {[%clk
0:00:49.3]} 36... Qxd6 {[%clk 0:00:17.7]} 37. hxg5 {[%clk 0:00:49.3]} 37... hxg5
{[%clk 0:00:18.6]} 38. Qxg5 {[%clk 0:00:48.5]} 38... Ne6 {[%clk 0:00:19.4]} 39.
Qf6 {[%clk 0:00:48.1]} 39... Qe7 {[%clk 0:00:19.5]} 40. Qc3 {[%clk 0:00:45.8]}
40... Kc7 {[%clk 0:00:19]} 41. Qa5+ {[%clk 0:00:45.1]} 41... Kb8 {[%clk
0:00:18.4]} 42. Bxa6 {[%clk 0:00:44.9]} 42... Bxa6 {[%clk 0:00:17]} 43. Qxa6
{[%clk 0:00:44.6]} 43... Qd7 {[%clk 0:00:17]} 44. Qb6+ {[%clk 0:00:42.2]} 44...
Kc8 {[%clk 0:00:17.3]} 45. Kh2 {[%clk 0:00:34.4]} 45... Qd4 {[%clk 0:00:14]} 46.
a4 {[%clk 0:00:31.5]} 46... Qxf2 {[%clk 0:00:13.2]} 47. a5 {[%clk 0:00:30.8]}
47... Qf4+ {[%clk 0:00:13.4]} 48. Kg1 {[%clk 0:00:30.2]} 48... Qc7 {[%clk
0:00:14.1]} 49. Qa6+ {[%clk 0:00:28.7]} 49... Qb7 {[%clk 0:00:14.1]} 50. Qd6
{[%clk 0:00:27]} 50... Qc7 {[%clk 0:00:11.1]} 51. Qa6+ {[%clk 0:00:26.1]} 51...
Kd8 {[%clk 0:00:11.6]} 52. Qa8+ {[%clk 0:00:25.1]} 52... Ke7 {[%clk 0:00:11.6]}
53. a6 {[%clk 0:00:25.2]} 53... c4 {[%clk 0:00:11.1]} 54. a7 {[%clk 0:00:23.2]}
54... Qb6+ {[%clk 0:00:05.1]} 55. Kh1 {[%clk 0:00:21.9]} 55... Qb1+ {[%clk
0:00:03.5]} 56. Kh2 {[%clk 0:00:20.5]} 56... Nc7 {[%clk 0:00:04.1]} 57. Qb8
{[%clk 0:00:19.1]} 57... Kd7 {[%clk 0:00:04]} 58. Qxc7+ {[%clk 0:00:17.8]} 58...
Kxc7 {[%clk 0:00:04.2]} 59. a8=Q {[%clk 0:00:18.7]} 59... Qf5 {[%clk 0:00:04.3]}
60. Qa7+ {[%clk 0:00:17.9]} 60... Kd6 {[%clk 0:00:04.6]} 61. Qb8+ {[%clk
0:00:17.5]} 61... Kd5 {[%clk 0:00:04.9]} 62. Qd8+ {[%clk 0:00:16.4]} 62... Ke4
{[%clk 0:00:05.1]} 63. Qe7+ {[%clk 0:00:12.6]} 63... Qe5+ {[%clk 0:00:05.5]} 64.
Qxe5+ {[%clk 0:00:12.5]} 64... Kxe5 {[%clk 0:00:06.1]} 65. Kg3 {[%clk
0:00:13.2]} 65... Ke4 {[%clk 0:00:06.1]} 66. Kf2 {[%clk 0:00:13.4]} 66... Kd3
{[%clk 0:00:06.6]} 0-1

[Event "Late-Titled-Tuesday-Blitz-April-30-2024"]
[Site "Chess.com"]
[Date "2024.04.30"]
[Round "11"]
[White "Navyblue1"]
[Black "Nemsko"]
[Result "1/2-1/2"]
[WhiteElo "2255"]
[BlackElo "2431"]
[TimeControl "180+1"]
[EndTime "16:05:34 PDT"]
[Termination "Game drawn by repetition"]

1. d4 {[%clk 0:03:00.9]} 1... Nf6 {[%clk 0:02:59]} 2. c4 {[%clk 0:03:01.6]} 2...
e6 {[%clk 0:02:59.2]} 3. Nf3 {[%clk 0:02:57.2]} 3... b6 {[%clk 0:02:58.5]} 4. g3
{[%clk 0:02:56.1]} 4... Ba6 {[%clk 0:02:57.9]} 5. Qc2 {[%clk 0:02:55.1]} 5... d5
{[%clk 0:02:56.4]} 6. cxd5 {[%clk 0:02:53.8]} 6... exd5 {[%clk 0:02:57.3]} 7.
Bg2 {[%clk 0:02:52.2]} 7... Be7 {[%clk 0:02:55.1]} 8. O-O {[%clk 0:02:51.4]}
8... O-O {[%clk 0:02:55.7]} 9. Nc3 {[%clk 0:02:46.6]} 9... c6 {[%clk 0:02:55.9]}
10. Re1 {[%clk 0:02:44.5]} 10... Nbd7 {[%clk 0:02:55.3]} 11. e4 {[%clk 0:02:43]}
11... dxe4 {[%clk 0:02:55.4]} 12. Nxe4 {[%clk 0:02:43.6]} 12... Nxe4 {[%clk
0:02:55.9]} 13. Qxe4 {[%clk 0:02:43.8]} 13... Bf6 {[%clk 0:02:52.7]} 14. Qxc6
{[%clk 0:02:42.7]} 14... Rc8 {[%clk 0:02:52.8]} 15. Qa4 {[%clk 0:02:39.1]} 15...
Nb8 {[%clk 0:02:49.3]} 16. Be3 {[%clk 0:02:35.6]} 16... Bb7 {[%clk 0:02:47.9]}
17. Qxa7 {[%clk 0:02:20.1]} 17... Bd5 {[%clk 0:02:46.1]} 18. Qa4 {[%clk
0:02:13.9]} 18... Nc6 {[%clk 0:02:37.3]} 19. Red1 {[%clk 0:02:10.7]} 19... Ra8
{[%clk 0:02:34.7]} 20. Qb5 {[%clk 0:02:02.4]} 20... Ra5 {[%clk 0:02:34.1]} 21.
Qd3 {[%clk 0:01:54.8]} 21... Nb4 {[%clk 0:02:34.4]} 22. Qd2 {[%clk 0:01:53.4]}
22... Nxa2 {[%clk 0:02:28.9]} 23. Ne1 {[%clk 0:01:41.4]} 23... Bxg2 {[%clk
0:02:25.4]} 24. Nxg2 {[%clk 0:01:42.3]} 24... Qd6 {[%clk 0:02:19.1]} 25. Nf4
{[%clk 0:01:36.9]} 25... Rfa8 {[%clk 0:02:16.5]} 26. Ne2 {[%clk 0:01:28.4]}
26... Nb4 {[%clk 0:02:13.1]} 27. Rxa5 {[%clk 0:01:27.3]} 27... bxa5 {[%clk
0:02:05.6]} 28. Nc3 {[%clk 0:01:25.3]} 28... Re8 {[%clk 0:02:02.1]} 29. Ra1
{[%clk 0:01:23.2]} 29... Nc6 {[%clk 0:01:57.2]} 30. d5 {[%clk 0:01:14.3]} 30...
Ne5 {[%clk 0:01:49.9]} 31. Qe2 {[%clk 0:01:07.2]} 31... h5 {[%clk 0:01:01.1]}
32. Qxh5 {[%clk 0:00:59.7]} 32... Nc4 {[%clk 0:00:54.6]} 33. Nd1 {[%clk
0:00:38.5]} 33... Re5 {[%clk 0:00:41.3]} 34. Qe2 {[%clk 0:00:36]} 34... Rxd5
{[%clk 0:00:31.9]} 35. Qxc4 {[%clk 0:00:23.6]} 35... Rxd1+ {[%clk 0:00:31.9]}
36. Rxd1 {[%clk 0:00:23.3]} 36... Qxd1+ {[%clk 0:00:32.4]} 37. Kg2 {[%clk
0:00:23.5]} 37... Qd7 {[%clk 0:00:22.4]} 38. b3 {[%clk 0:00:18.1]} 38... Qb7+
{[%clk 0:00:22.2]} 39. Kf1 {[%clk 0:00:17.6]} 39... Qh1+ {[%clk 0:00:21.4]} 40.
Ke2 {[%clk 0:00:17.8]} 40... Qxh2 {[%clk 0:00:19.5]} 41. Qc8+ {[%clk 0:00:17.7]}
41... Kh7 {[%clk 0:00:19.5]} 42. Qf5+ {[%clk 0:00:17.8]} 42... Kg8 {[%clk
0:00:19.9]} 43. Qc8+ {[%clk 0:00:17.6]} 43... Kh7 {[%clk 0:00:20.3]} 44. Qf5+
{[%clk 0:00:17.8]} 44... Kg8 {[%clk 0:00:20.9]} 45. Qxa5 {[%clk 0:00:17.6]}
45... Qg2 {[%clk 0:00:16.4]} 46. Qb5 {[%clk 0:00:16.7]} 46... Qe4 {[%clk
0:00:15]} 47. Qb8+ {[%clk 0:00:16.1]} 47... Kh7 {[%clk 0:00:14.9]} 48. Qb5
{[%clk 0:00:16]} 48... g6 {[%clk 0:00:12.2]} 49. Qd3 {[%clk 0:00:15.5]} 49...
Qg4+ {[%clk 0:00:10.5]} 50. Kf1 {[%clk 0:00:14.7]} 50... Qh3+ {[%clk 0:00:10.9]}
51. Ke2 {[%clk 0:00:15.1]} 51... Qg4+ {[%clk 0:00:10.9]} 52. Ke1 {[%clk
0:00:15.3]} 52... Qh3 {[%clk 0:00:10.9]} 53. Qc4 {[%clk 0:00:15.3]} 53... Qh1+
{[%clk 0:00:10.8]} 54. Ke2 {[%clk 0:00:15.5]} 54... Kg7 {[%clk 0:00:11.2]} 55.
Qd3 {[%clk 0:00:13.9]} 55... Qa1 {[%clk 0:00:09.4]} 56. Kf3 {[%clk 0:00:14]}
56... Qa8+ {[%clk 0:00:08.4]} 57. Ke2 {[%clk 0:00:14]} 57... Qa2+ {[%clk
0:00:08.5]} 58. Bd2 {[%clk 0:00:14.1]} 58... Qa7 {[%clk 0:00:07.1]} 59. Qe3
{[%clk 0:00:13.6]} 59... Qb7 {[%clk 0:00:07.1]} 60. Qd3 {[%clk 0:00:13.5]} 60...
Qe7+ {[%clk 0:00:07.1]} 61. Qe3 {[%clk 0:00:13.6]} 61... Qb7 {[%clk 0:00:07.1]}
62. Qf3 {[%clk 0:00:13.4]} 62... Qb5+ {[%clk 0:00:07.1]} 63. Qd3 {[%clk
0:00:13.5]} 63... Qe5+ {[%clk 0:00:07.7]} 64. Be3 {[%clk 0:00:13.5]} 64... Qb2+
{[%clk 0:00:07.5]} 65. Bd2 {[%clk 0:00:13.3]} 65... Qe5+ {[%clk 0:00:08]} 66.
Be3 {[%clk 0:00:13.7]} 66... Qh5+ {[%clk 0:00:07.5]} 67. Ke1 {[%clk 0:00:13]}
67... Qh1+ {[%clk 0:00:07.7]} 68. Ke2 {[%clk 0:00:13.3]} 68... Qh5+ {[%clk
0:00:07.7]} 69. Kd2 {[%clk 0:00:13.2]} 69... Qa5+ {[%clk 0:00:07.2]} 70. Ke2
{[%clk 0:00:13.1]} 70... Qh5+ {[%clk 0:00:07.5]} 1/2-1/2